[Event "6th Porticcio Open 2019"]
[Site "Porticcio"]
[Date "2019.06.29"]
[Round "1.7"]
[White "Lagarde, Maxime"]
[Black "Marie, Maxime"]
[Result "1-0"]
[ECO "B06"]
[WhiteElo "2599"]
[BlackElo "2190"]
[Annotator "RC"]
[PlyCount "47"]
[EventDate "2019.06.23"]
[EventType "swiss"]
[EventCountry "FRA"]
[SourceTitle "playchess.com"]
[Source "ChessBase"]
[SourceQuality "1"]
[TimeControl "5400+30"]

1. e4 {[%emt 0:00:00]} g6 {[%emt 0:00:14]} 2. d4 {[%emt 0:00:02]} c6 {[%emt 0:00:26]} 3. Nf3 {[%emt 0:01:49]} Bg7 {[%emt 0:00:27]} 4. Bd3 {[%emt 0:00:42]} d6 {[%emt 0:00:51]} 5. h3 {[%emt 0:04:15]} Nd7 {[%emt 0:02:18]} 6. c4 {[%emt 0:07:13]} e5 {[%emt 0:02:26]} 7. d5 {[%emt 0:00:11]} cxd5 {[%emt 0:03:03]} 8. cxd5 {[%emt 0:00:06]} Ne7 {[%emt 0:00:31]} 9. Nc3 {[%emt 0:01:59]} O-O {[%emt 0:01:34]} 10. g4 {[%emt 0:03:28]} a6 {[%emt 0:03:51]} 11. a4 {[%emt 0:04:55]} a5 {[%emt 0:07:51]} 12. Rg1 {[%emt 0:03:25]} Nc5 {[%emt 0:12:32]} 13. Bc2 {[%emt 0:00:14]} Kh8 {[%emt 0:02:15]} 14. h4 {[%emt 0:03:11]} h6 {[%emt 0:11:06]} 15. Be3 {[%emt 0:02:35]} Bd7 {[%emt 0:01:37]} 16. Qd2 {[%emt 0:01:24]} Ng8 {[%emt 0:00:32]} 17. h5 {[%emt 0:04:26]} g5 {[%emt 0:02:12]} 18. Nh2 {[%emt 0:02:04]} Qc8 {[%emt 0:06:19]} 19. f3 {[%emt 0:00:16]} Bf6 {[%emt 0:01:29]} 20. Nf1 {[%emt 0:04:37]} Bd8 {[%emt 0:02:10]} 21. Qe2 {[%emt 0:02:03]} Nf6 {[%emt 0:04:06]} 22. Nd2 {[%emt 0:01:07]} Ne8 {[%emt 0:00:52]} 23. Nc4 {[%emt 0:00:47]} Qb8 {[%emt 0:03:01]} 24. Nb5 {[%emt 0:08:18]} 1-0

[Event "6th Porticcio Open 2019"]
[Site "Porticcio"]
[Date "2019.06.29"]
[Round "1.8"]
[White "Dev, Shah"]
[Black "Zhigalko, Sergei"]
[Result "0-1"]
[ECO "E52"]
[WhiteElo "2183"]
[BlackElo "2594"]
[Annotator "ChessBase"]
[PlyCount "82"]
[EventDate "2019.06.23"]
[EventType "swiss"]
[EventCountry "FRA"]
[SourceTitle "playchess.com"]
[Source "ChessBase"]
[SourceQuality "1"]
[TimeControl "5400+30"]

1. d4 {[%emt 0:00:23]} Nf6 {[%emt 0:00:00]} 2. c4 {[%emt 0:00:12]} e6 {[%emt 0:00:00]} 3. Nc3 {[%emt 0:00:07]} Bb4 {[%emt 0:00:00]} 4. e3 {[%emt 0:00:08]} O-O {[%emt 0:00:00]} 5. Bd3 {[%emt 0:00:09]} d5 {[%emt 0:00:26]} 6. Nf3 {[%emt 0:00:08]} b6 {[%emt 0:00:08]} 7. cxd5 {[%emt 0:00:20]} exd5 {[%emt 0:00:05]} 8. O-O {[%emt 0:00:10]} Bb7 {[%emt 0:00:03]} 9. Ne5 {[%emt 0:00:08]} Bd6 {[%emt 0:00:06]} 10. f4 {[%emt 0:00:13]} c5 {[%emt 0:00:05]} 11. Qf3 {[%emt 0:00:19]} Nc6 {[%emt 0:03:23]} 12. Qh3 {[%emt 0:02:09]} g6 {[%emt 0:12:09]} 13. Qh6 {[%emt 0:07:15]} Re8 {[%emt 0:09:19]} 14. Bd2 {[%emt 0:18:51]} Bf8 {[%emt 0:02:01]} 15. Qh3 {[%emt 0:01:34]} cxd4 {[%emt 0:01:02]} 16. Nxc6 {[%emt 0:00:44]} Bxc6 {[%emt 0:00:07]} 17. exd4 {[%emt 0:00:08]} Ne4 {[%emt 0:00:57]} 18. Bxe4 {[%emt 0:02:17]} dxe4 {[%emt 0:00:15]} 19. Be3 {[%emt 0:00:59]} Bd7 {[%emt 0:03:59]} 20. Qg3 {[%emt 0:02:11]} Bg7 {[%emt 0:00:10]} 21. Rfd1 {[%emt 0:07:09]} b5 {[%emt 0:05:19]} 22. Rac1 {[%emt 0:05:15]} b4 {[%emt 0:05:06]} 23. Nb1 {[%emt 0:01:50]} Bb5 {[%emt 0:06:26]} 24. Qf2 {[%emt 0:05:13]} Bd3 {[%emt 0:02:19]} 25. Nd2 {[%emt 0:01:44]} Qa5 {[%emt 0:01:45]} 26. Ra1 {[%emt 0:02:43]} Qd5 {[%emt 0:01:07]} 27. Nb3 {[%emt 0:00:25]} Bc4 {[%emt 0:02:15]} 28. Nc5 {[%emt 0:01:48]} Rac8 29. b3 Bb5 30. Qe1 Rb8 31. a4 bxa3 32. Rxa3 a6 33. Ra5 Rb6 34. Qd2 Rd8 35. Qa2 Rbd6 36. Rd2 Qc6 37. Qb2 Bxd4 38. Rxd4 Qxc5 39. b4 Qb6 40. Rd3 exd3 41. Bxb6 d2 0-1

[Event "6th Porticcio Open 2019"]
[Site "Porticcio"]
[Date "2019.06.30"]
[Round "2.6"]
[White "Ternault, Mathieu"]
[Black "Lagarde, Maxime"]
[Result "0-1"]
[ECO "A04"]
[WhiteElo "2318"]
[BlackElo "2599"]
[Annotator "ChessBase"]
[PlyCount "111"]
[EventDate "2019.06.23"]
[EventType "swiss"]
[EventCountry "FRA"]
[SourceTitle "playchess.com"]
[Source "ChessBase"]
[SourceQuality "1"]
[TimeControl "5400+30"]

1. Nf3 {[%emt 0:00:00]} c5 {[%emt 0:00:28]} 2. c4 {[%emt 0:02:47]} g6 {[%emt 0:00:41]} 3. Nc3 {[%emt 0:05:04]} Bg7 {[%emt 0:00:28]} 4. d4 {[%emt 0:01:58]} cxd4 {[%emt 0:03:34]} 5. Nxd4 {[%emt 0:01:05]} b6 {[%emt 0:02:45]} 6. e4 {[%emt 0:12:02]} Bb7 {[%emt 0:00:16]} 7. Be3 {[%emt 0:01:12]} d6 {[%emt 0:00:19]} 8. Qd2 {[%emt 0:03:03]} Nd7 {[%emt 0:02:52]} 9. Rc1 {[%emt 0:07:58]} a6 {[%emt 0:04:46]} 10. Be2 {[%emt 0:05:07]} Ngf6 {[%emt 0:04:12]} 11. f3 {[%emt 0:01:16]} O-O {[%emt 0:01:14]} 12. O-O {[%emt 0:02:58]} Re8 {[%emt 0:02:49]} 13. Nc2 {[%emt 0:03:17]} Rc8 {[%emt 0:03:11]} 14. b3 {[%emt 0:13:38]} Qc7 {[%emt 0:05:35]} 15. Rfd1 {[%emt 0:02:22]} Qb8 {[%emt 0:06:25]} 16. Nd5 {[%emt 0:03:13]} Nxd5 {[%emt 0:02:55]} 17. exd5 {[%emt 0:00:44]} e5 {[%emt 0:02:17]} 18. dxe6 {[%emt 0:02:33]} Rxe6 {[%emt 0:00:04]} 19. Nd4 {[%emt 0:00:59]} Ree8 {[%emt 0:03:51]} 20. Bf1 {[%emt 0:04:27]} Be5 {[%emt 0:01:16]} 21. Ne2 {[%emt 0:02:31]} d5 {[%emt 0:08:41]} 22. Bf4 {[%emt 0:04:08]} Nf6 {[%emt 0:01:25]} 23. Bxe5 {[%emt 0:02:30]} Qxe5 {[%emt 0:00:05]} 24. Nf4 {[%emt 0:01:05]} dxc4 {[%emt 0:00:50]} 25. Rxc4 {[%emt 0:04:19]} b5 {[%emt 0:11:34]} 26. Rxc8 {[%emt 0:04:25]} Rxc8 {[%emt 0:00:06]} 27. Nd3 {[%emt 0:00:58]} Qd6 {[%emt 0:00:16]} 28. Rc1 {[%emt 0:03:26]} Rd8 {[%emt 0:02:54]} 29. Qf2 {[%emt 0:00:54]} Bc8 {[%emt 0:00:23]} 30. Nc5 {[%emt 0:00:39]} Qf4 {[%emt 0:00:57]} 31. Nd3 {[%emt 0:01:34]} Qd6 {[%emt 0:00:02]} 32. Nc5 {[%emt 0:00:05]} Kg7 {[%emt 0:00:17]} 33. Qb2 {[%emt 0:02:14]} h5 {[%emt 0:03:05]} 34. Ne4 {[%emt 0:01:13]} Qb6+ {[%emt 0:00:01]} 35. Rc5 {[%emt 0:00:31]} Bb7 {[%emt 0:06:51]} 36. Qxf6+ {[%emt 0:00:52]} Qxf6 {[%emt 0:00:02]} 37. Nxf6 {[%emt 0:00:05]} Kxf6 {[%emt 0:00:04]} 38. Rc7 {[%emt 0:00:52]} Bd5 {[%emt 0:00:01]} 39. Ra7 {[%emt 0:00:12]} Rd6 {[%emt 0:00:12]} 40. Kf2 {[%emt 0:00:49]} Be6 {[%emt 0:01:56]} 41. Ke3 {[%emt 0:00:07]} g5 {[%emt 0:01:33]} 42. Bd3 {[%emt 0:00:37]} h4 {[%emt 0:01:39]} 43. g3 {[%emt 0:00:57]} h3 {[%emt 0:01:03]} 44. Be2 {[%emt 0:00:39]} Rc6 {[%emt 0:00:34]} 45. Kd2 {[%emt 0:00:33]} Ke5 {[%emt 0:00:39]} 46. Ra8 {[%emt 0:00:17]} Bf5 {[%emt 0:04:36]} 47. Bd1 {[%emt 0:00:42]} Rd6+ {[%emt 0:00:31]} 48. Ke2 {[%emt 0:00:02]} Kd4 {[%emt 0:02:17]} 49. Kd2 {[%emt 0:00:59]} Kc5+ {[%emt 0:00:24]} 50. Ke2 {[%emt 0:00:01]} Kb4 {[%emt 0:00:46]} 51. Ra7 {[%emt 0:00:19]} Be6 {[%emt 0:01:35]} 52. a4 {[%emt 0:00:58]} g4 {[%emt 0:03:22]} 53. f4 {[%emt 0:00:42]} f5 {[%emt 0:04:03]} 54. Bc2 {[%emt 0:00:27]} Bxb3 {[%emt 0:00:21]} 55. Bxf5 {[%emt 0:00:00]} Be6 56. Bc2 0-1

[Event "6th Porticcio Open 2019"]
[Site "Porticcio"]
[Date "2019.06.30"]
[Round "2.7"]
[White "Zhigalko, Sergei"]
[Black "Boyer, Mahel"]
[Result "1-0"]
[ECO "C02"]
[WhiteElo "2594"]
[BlackElo "2295"]
[Annotator "ChessBase"]
[PlyCount "99"]
[EventDate "2019.06.23"]
[EventType "swiss"]
[EventCountry "FRA"]
[SourceTitle "playchess.com"]
[Source "ChessBase"]
[SourceQuality "1"]
[TimeControl "5400+30"]

1. e4 {[%emt 0:00:00]} e6 {[%emt 0:00:00]} 2. d4 {[%emt 0:00:00]} d5 {[%emt 0:00:00]} 3. e5 {[%emt 0:00:00]} c5 {[%emt 0:00:00]} 4. c3 {[%emt 0:00:00]} Bd7 {[%emt 0:01:22]} 5. Nf3 {[%emt 0:00:00]} Nc6 {[%emt 0:08:09]} 6. Be2 {[%emt 0:00:00]} cxd4 {[%emt 0:01:15]} 7. cxd4 {[%emt 0:00:03]} Nge7 {[%emt 0:00:02]} 8. Na3 {[%emt 0:02:05]} Nf5 {[%emt 0:00:50]} 9. Nc2 {[%emt 0:00:05]} Be7 {[%emt 0:00:08]} 10. O-O {[%emt 0:00:17]} O-O {[%emt 0:03:32]} 11. Bd3 {[%emt 0:00:03]} f6 {[%emt 0:04:50]} 12. Bf4 {[%emt 0:13:54]} g5 {[%emt 0:09:13]} 13. exf6 {[%emt 0:02:27]} Bxf6 {[%emt 0:00:31]} 14. Be5 {[%emt 0:29:08]} g4 {[%emt 0:12:42]} 15. Bxf6 {[%emt 0:00:39]} Qxf6 {[%emt 0:00:07]} 16. Ne5 {[%emt 0:00:04]} Nxe5 {[%emt 0:00:09]} 17. dxe5 {[%emt 0:00:04]} Qg5 {[%emt 0:05:16]} 18. f4 {[%emt 0:11:04]} gxf3 {[%emt 0:00:49]} 19. Rxf3 {[%emt 0:00:04]} Kh8 {[%emt 0:00:39]} 20. Qe2 {[%emt 0:00:42]} Nh4 {[%emt 0:08:19]} 21. Rg3 {[%emt 0:01:18]} Qh6 {[%emt 0:00:32]} 22. Rh3 {[%emt 0:02:19]} Qg5 {[%emt 0:04:45]} 23. Rf1 {[%emt 0:20:17]} Ng6 {[%emt 0:04:08]} 24. Bxg6 {[%emt 0:03:14]} Qxg6 {[%emt 0:00:03]} 25. Nd4 {[%emt 0:02:37]} Rxf1+ {[%emt 0:05:48]} 26. Qxf1 {[%emt 0:00:08]} Qg7 {[%emt 0:00:05]} 27. Rf3 {[%emt 0:00:22]} Rg8 {[%emt 0:00:17]} 28. Qe2 {[%emt 0:07:41]} Qg4 {[%emt 0:02:29]} 29. Qf2 {[%emt 0:01:16]} Qh5 {[%emt 0:05:05]} 30. Re3 {[%emt 0:03:43]} Qg5 {[%emt 0:06:54]} 31. h3 {[%emt 0:00:14]} Qg7 {[%emt 0:00:24]} 32. Kh2 {[%emt 0:01:09]} Rf8 {[%emt 0:04:03]} 33. Qh4 {[%emt 0:00:05]} Rg8 {[%emt 0:00:20]} 34. Re2 {[%emt 0:01:07]} Rf8 {[%emt 0:00:16]} 35. Re3 {[%emt 0:00:30]} Rg8 {[%emt 0:00:03]} 36. Qg3 {[%emt 0:00:15]} Qxg3+ {[%emt 0:01:32]} 37. Rxg3 {[%emt 0:00:02]} Rc8 {[%emt 0:00:40]} 38. Rf3 {[%emt 0:00:39]} Rc4 {[%emt 0:00:40]} 39. Rf4 {[%emt 0:00:22]} Kg8 {[%emt 0:04:12]} 40. h4 {[%emt 0:00:48]} Rc1 {[%emt 0:00:27]} 41. h5 {[%emt 0:00:20]} Re1 {[%emt 0:00:10]} 42. Nf3 {[%emt 0:00:20]} Re2 {[%emt 0:00:00]} 43. h6 {[%emt 0:00:26]} Be8 {[%emt 0:00:54]} 44. Kh3 {[%emt 0:01:35]} Bg6 {[%emt 0:04:05]} 45. g4 {[%emt 0:00:26]} d4 {[%emt 0:02:35]} 46. Nxd4 {[%emt 0:00:37]} Rxe5 {[%emt 0:00:06]} 47. Rf6 {[%emt 0:00:21]} Bf7 {[%emt 0:00:25]} 48. Kh4 {[%emt 0:00:26]} Re4 {[%emt 0:01:14]} 49. Nf3 {[%emt 0:00:18]} e5 {[%emt 0:02:15]} 50. Rxf7 {[%emt 0:00:11]} 1-0

[Event "6th Porticcio Open 2019"]
[Site "Porticcio"]
[Date "2019.06.30"]
[Round "2.8"]
[White "Derakhshani, Borna"]
[Black "Kovchan, Alexander"]
[Result "1/2-1/2"]
[ECO "A01"]
[WhiteElo "2300"]
[BlackElo "2566"]
[Annotator "ChessBase"]
[PlyCount "83"]
[EventDate "2019.06.23"]
[EventType "swiss"]
[EventCountry "FRA"]
[SourceTitle "playchess.com"]
[Source "ChessBase"]
[SourceQuality "1"]
[TimeControl "5400+30"]

1. b3 {[%emt 0:04:10]} c5 {[%emt 0:00:21]} 2. Bb2 {[%emt 0:00:57]} d6 {[%emt 0:01:37]} 3. c4 {[%emt 0:01:19]} e5 {[%emt 0:02:56]} 4. Nc3 {[%emt 0:03:00]} g6 {[%emt 0:00:50]} 5. g3 {[%emt 0:00:31]} Bg7 {[%emt 0:00:08]} 6. Bg2 {[%emt 0:00:12]} Ne7 {[%emt 0:01:06]} 7. e3 {[%emt 0:03:07]} Nbc6 {[%emt 0:00:36]} 8. Nge2 {[%emt 0:00:49]} Be6 {[%emt 0:00:23]} 9. O-O {[%emt 0:01:40]} Qd7 {[%emt 0:01:25]} 10. Nd5 {[%emt 0:03:01]} h5 {[%emt 0:00:52]} 11. Nef4 {[%emt 0:03:58]} Bg4 {[%emt 0:06:46]} 12. f3 Bf5 {[%emt 0:11:16]} 13. e4 {[%emt 0:01:47]} Be6 {[%emt 0:00:15]} 14. Nxe6 {[%emt 0:00:21]} fxe6 {[%emt 0:00:04]} 15. Bh3 {[%emt 0:02:05]} O-O {[%emt 0:02:09]} 16. f4 {[%emt 0:02:59]} exf4 {[%emt 0:01:55]} 17. Bxg7 {[%emt 0:02:29]} Kxg7 {[%emt 0:00:08]} 18. gxf4 {[%emt 0:06:56]} Nd4 {[%emt 0:01:36]} 19. Kh1 {[%emt 0:10:36]} Qd8 {[%emt 0:03:20]} 20. Ne3 {[%emt 0:00:57]} Nec6 {[%emt 0:01:03]} 21. Ng2 {[%emt 0:01:22]} Kh6 {[%emt 0:11:42]} 22. Rc1 {[%emt 0:13:31]} g5 {[%emt 0:06:59]} 23. Rc3 {[%emt 0:01:33]} gxf4 {[%emt 0:01:37]} 24. Nxf4 {[%emt 0:12:24]} Qh4 {[%emt 0:02:01]} 25. Ng2 {[%emt 0:01:12]} Qe7 {[%emt 0:08:04]} 26. Nf4 {[%emt 0:01:12]} Qh4 {[%emt 0:02:39]} 27. Ng2 {[%emt 0:00:07]} Qxe4 {[%emt 0:07:26]} 28. Re3 {[%emt 0:00:28]} Qc2 {[%emt 0:01:30]} 29. Qe1 {[%emt 0:04:42]} e5 {[%emt 0:02:31]} 30. Nh4 {[%emt 0:05:38]} Ne7 {[%emt 0:16:00]} 31. Rc3 {[%emt 0:03:41]} Rxf1+ {[%emt 0:00:33]} 32. Bxf1 {[%emt 0:00:04]} Qh7 {[%emt 0:00:37]} 33. Qe3+ {[%emt 0:00:42]} Kg7 {[%emt 0:00:03]} 34. Qg5+ {[%emt 0:00:27]} Kf7 {[%emt 0:00:44]} 35. Bd3 {[%emt 0:00:10]} Qh8 {[%emt 0:01:43]} 36. Bg6+ {[%emt 0:02:35]} Ke6 {[%emt 0:00:45]} 37. Bxh5 {[%emt 0:01:34]} Rg8 {[%emt 0:00:18]} 38. Bg4+ {[%emt 0:00:01]} Kf7 {[%emt 0:00:08]} 39. Bh5+ {[%emt 0:00:03]} Ke6 {[%emt 0:00:42]} 40. Bg4+ {[%emt 0:00:01]} Kf7 {[%emt 0:00:05]} 41. Bh5+ {[%emt 0:00:20]} Ke6 {[%emt 0:00:33]} 42. Bg4+ {[%emt 0:00:06]} 1/2-1/2

[Event "6th Porticcio Open 2019"]
[Site "Porticcio"]
[Date "2019.06.30"]
[Round "3.4"]
[White "Lagarde, Maxime"]
[Black "Kirk, Ezra"]
[Result "1/2-1/2"]
[ECO "B22"]
[WhiteElo "2599"]
[BlackElo "2428"]
[Annotator "ChessBase"]
[PlyCount "100"]
[EventDate "2019.06.23"]
[EventType "swiss"]
[EventCountry "FRA"]
[SourceTitle "playchess.com"]
[Source "ChessBase"]
[SourceQuality "1"]
[TimeControl "5400+30"]

1. e4 {[%emt 0:00:00]} c5 {[%emt 0:00:00]} 2. c3 {[%emt 0:00:05]} Nf6 {[%emt 0:01:29]} 3. e5 {[%emt 0:00:28]} Nd5 {[%emt 0:00:05]} 4. Nf3 {[%emt 0:00:03]} Nc6 {[%emt 0:01:09]} 5. Bc4 {[%emt 0:00:55]} Nb6 {[%emt 0:00:38]} 6. Bb3 {[%emt 0:00:04]} c4 {[%emt 0:00:04]} 7. Bc2 {[%emt 0:00:02]} Qc7 {[%emt 0:03:42]} 8. O-O {[%emt 0:00:16]} Nxe5 {[%emt 0:04:13]} 9. Nxe5 {[%emt 0:00:06]} Qxe5 {[%emt 0:00:06]} 10. a4 {[%emt 0:05:46]} d5 {[%emt 0:05:51]} 11. Re1 {[%emt 0:07:36]} Qc7 {[%emt 0:04:05]} 12. d3 {[%emt 0:01:32]} Bf5 {[%emt 0:09:54]} 13. Na3 {[%emt 0:04:12]} cxd3 {[%emt 0:10:50]} 14. Nb5 {[%emt 0:05:42]} Qd7 {[%emt 0:02:10]} 15. Bb3 {[%emt 0:00:23]} a6 {[%emt 0:20:32]} 16. Nd4 {[%emt 0:00:15]} Nc4 {[%emt 0:02:35]} 17. a5 {[%emt 0:02:00]} Rc8 {[%emt 0:00:33]} 18. Ba4 {[%emt 0:06:28]} Rc6 {[%emt 0:00:21]} 19. Bxc6 {[%emt 0:04:25]} bxc6 {[%emt 0:00:07]} 20. Nxf5 {[%emt 0:01:59]} Qxf5 {[%emt 0:00:13]} 21. Qa4 {[%emt 0:03:04]} Qc8 {[%emt 0:04:41]} 22. Qd1 {[%emt 0:09:30]} Qf5 {[%emt 0:00:14]} 23. b3 {[%emt 0:03:30]} Nd6 {[%emt 0:02:37]} 24. Be3 {[%emt 0:00:16]} e5 {[%emt 0:02:53]} 25. Bd4 {[%emt 0:10:48]} f6 {[%emt 0:02:11]} 26. f4 {[%emt 0:00:13]} Ne4 {[%emt 0:04:39]} 27. fxe5 {[%emt 0:00:05]} fxe5 {[%emt 0:01:49]} 28. Rf1 {[%emt 0:00:03]} Qg6 {[%emt 0:08:15]} 29. Bb6 {[%emt 0:00:39]} Nf6 {[%emt 0:00:41]} 30. Qf3 {[%emt 0:02:01]} Bd6 {[%emt 0:03:31]} 31. Qh3 {[%emt 0:00:06]} Ng4 {[%emt 0:00:39]} 32. Qh4 {[%emt 0:00:28]} Kd7 {[%emt 0:01:16]} 33. c4 {[%emt 0:03:32]} e4 {[%emt 0:00:27]} 34. cxd5 {[%emt 0:02:57]} cxd5 {[%emt 0:00:04]} 35. Kh1 {[%emt 0:01:14]} Nxh2 {[%emt 0:01:25]} 36. Rf4 {[%emt 0:00:24]} Qh6 {[%emt 0:01:38]} 37. Qxh6 {[%emt 0:00:53]} gxh6 {[%emt 0:00:04]} 38. Rh4 {[%emt 0:00:06]} Rf8 {[%emt 0:02:22]} 39. Rxh2 {[%emt 0:00:48]} Bxh2 {[%emt 0:00:05]} 40. Kxh2 {[%emt 0:00:04]} Ke6 {[%emt 0:01:11]} 41. b4 {[%emt 0:04:01]} Ke5 {[%emt 0:00:39]} 42. b5 {[%emt 0:06:57]} axb5 {[%emt 0:00:04]} 43. a6 {[%emt 0:00:02]} d4 {[%emt 0:00:12]} 44. a7 {[%emt 0:00:16]} Ra8 {[%emt 0:00:47]} 45. Kg3 {[%emt 0:03:14]} e3 {[%emt 0:00:13]} 46. Rh1 {[%emt 0:03:38]} Rg8+ {[%emt 0:00:22]} 47. Kf3 {[%emt 0:00:02]} Rf8+ {[%emt 0:00:05]} 48. Kg3 {[%emt 0:00:03]} Rg8+ {[%emt 0:01:13]} 49. Kf3 {[%emt 0:00:01]} Rf8+ {[%emt 0:00:05]} 50. Kg3 {[%emt 0:00:08]} Rg8+ {[%emt 0:00:54]} 1/2-1/2

[Event "6th Porticcio Open 2019"]
[Site "Porticcio"]
[Date "2019.06.30"]
[Round "3.5"]
[White "Prithu Gupta"]
[Black "Zhigalko, Sergei"]
[Result "1/2-1/2"]
[ECO "A28"]
[WhiteElo "2470"]
[BlackElo "2594"]
[Annotator "ChessBase"]
[PlyCount "165"]
[EventDate "2019.06.23"]
[EventType "swiss"]
[EventCountry "FRA"]
[SourceTitle "playchess.com"]
[Source "ChessBase"]
[SourceQuality "1"]
[TimeControl "5400+30"]

1. c4 {[%emt 0:01:11]} e5 {[%emt 0:00:00]} 2. Nc3 {[%emt 0:00:07]} Nf6 {[%emt 0:00:00]} 3. Nf3 {[%emt 0:00:06]} Nc6 {[%emt 0:00:19]} 4. e4 {[%emt 0:00:07]} d6 {[%emt 0:07:24]} 5. d4 {[%emt 0:00:07]} Bg4 {[%emt 0:10:22]} 6. d5 {[%emt 0:00:08]} Nd4 {[%emt 0:00:42]} 7. Be2 {[%emt 0:00:07]} Bxf3 {[%emt 0:01:14]} 8. Bxf3 {[%emt 0:00:03]} c5 {[%emt 0:00:38]} 9. dxc6 {[%emt 0:02:22]} bxc6 {[%emt 0:00:36]} 10. Be3 {[%emt 0:08:36]} c5 {[%emt 0:10:38]} 11. O-O {[%emt 0:01:53]} Be7 {[%emt 0:01:37]} 12. b3 {[%emt 0:02:54]} O-O {[%emt 0:00:30]} 13. g3 {[%emt 0:00:06]} Nd7 {[%emt 0:12:06]} 14. Bg2 {[%emt 0:00:10]} Nb6 {[%emt 0:00:25]} 15. f4 {[%emt 0:02:20]} a5 {[%emt 0:00:26]} 16. a4 {[%emt 0:01:04]} Nd7 {[%emt 0:03:18]} 17. Nd5 {[%emt 0:02:18]} Nb6 {[%emt 0:00:19]} 18. Nc3 {[%emt 0:04:06]} Nd7 {[%emt 0:00:05]} 19. Ra2 {[%emt 0:01:34]} Rb8 {[%emt 0:01:20]} 20. Nb5 {[%emt 0:01:20]} Rb7 {[%emt 0:07:15]} 21. Raf2 {[%emt 0:02:52]} Nb8 {[%emt 0:02:06]} 22. Qh5 {[%emt 0:20:21]} Bf6 {[%emt 0:13:41]} 23. f5 {[%emt 0:13:51]} Nd7 {[%emt 0:05:06]} 24. Rb2 {[%emt 0:08:55]} Qe7 {[%emt 0:01:06]} 25. h4 {[%emt 0:02:51]} Ra8 {[%emt 0:07:16]} 26. Qd1 {[%emt 0:09:26]} Ra6 {[%emt 0:05:05]} 27. Rff2 {[%emt 0:00:56]} Qd8 {[%emt 0:02:02]} 28. Bf1 {[%emt 0:01:20]} Be7 {[%emt 0:03:57]} 29. Bd3 {[%emt 0:00:39]} Nf8 {[%emt 0:00:34]} 30. Rh2 {[%emt 0:02:40]} h6 {[%emt 0:00:31]} 31. Rbg2 {[%emt 0:00:08]} Nh7 {[%emt 0:00:08]} 32. Bf2 {[%emt 0:00:08]} Kf8 {[%emt 0:01:47]} 33. g4 {[%emt 0:00:22]} f6 {[%emt 0:02:24]} 34. Be3 {[%emt 0:00:50]} Ra8 {[%emt 0:00:54]} 35. Rh3 {[%emt 0:01:29]} Rab8 {[%emt 0:00:32]} 36. Bb1 {[%emt 0:04:46]} Ke8 {[%emt 0:00:07]} 37. Bd2 {[%emt 0:02:02]} Kd7 {[%emt 0:00:22]} 38. Qe1 {[%emt 0:02:25]} Ra8 {[%emt 0:00:03]} 39. Rhg3 {[%emt 0:00:31]} Rbb8 {[%emt 0:00:59]} 40. Qd1 {[%emt 0:01:40]} Rb7 {[%emt 0:00:34]} 41. Bd3 {[%emt 0:00:32]} Rbb8 {[%emt 0:00:10]} 42. Bf1 {[%emt 0:00:47]} Rb7 {[%emt 0:00:15]} 43. Rf2 {[%emt 0:00:16]} Rbb8 {[%emt 0:00:09]} 44. Bh3 {[%emt 0:00:27]} Kc6 {[%emt 0:00:10]} 45. Bc3 {[%emt 0:00:47]} Kb6 {[%emt 0:02:00]} 46. Bg2 {[%emt 0:00:40]} Ka6 {[%emt 0:00:32]} 47. Be1 {[%emt 0:00:37]} Rb7 {[%emt 0:00:45]} 48. Rb2 {[%emt 0:00:28]} Rab8 {[%emt 0:00:11]} 49. Bf2 {[%emt 0:00:26]} Rb6 {[%emt 0:00:52]} 50. Bf1 {[%emt 0:00:27]} R6b7 {[%emt 0:00:42]} 51. Qd2 {[%emt 0:00:30]} Kb6 {[%emt 0:00:36]} 52. Be2 {[%emt 0:00:33]} Kc6 {[%emt 0:00:14]} 53. Bd1 {[%emt 0:00:28]} Bf8 {[%emt 0:00:55]} 54. Be1 {[%emt 0:00:23]} Ra8 {[%emt 0:00:05]} 55. Nc3 {[%emt 0:00:22]} Be7 {[%emt 0:00:40]} 56. Nd5 {[%emt 0:00:21]} Qb8 {[%emt 0:00:06]} 57. Qf2 {[%emt 0:00:54]} Bd8 {[%emt 0:00:17]} 58. Bd2 {[%emt 0:00:28]} Ra6 {[%emt 0:00:44]} 59. Qe1 {[%emt 0:00:22]} Ra8 {[%emt 0:00:08]} 60. Qe3 {[%emt 0:00:41]} Ra6 {[%emt 0:00:06]} 61. Qd3 {[%emt 0:00:18]} Ra8 {[%emt 0:00:07]} 62. Be3 {[%emt 0:00:25]} Raa7 {[%emt 0:00:17]} 63. Bf2 {[%emt 0:00:23]} Ra8 {[%emt 0:00:10]} 64. Qb1 {[%emt 0:00:51]} Qa7 {[%emt 0:01:13]} 65. Be2 {[%emt 0:00:37]} Rab8 {[%emt 0:00:25]} 66. Bd1 {[%emt 0:00:32]} Nf8 {[%emt 0:00:25]} 67. Be3 {[%emt 0:00:22]} Nh7 {[%emt 0:00:02]} 68. Nc3 {[%emt 0:00:40]} Qb6 {[%emt 0:00:24]} 69. Nb5 {[%emt 0:00:18]} Be7 {[%emt 0:00:38]} 70. Be2 {[%emt 0:00:11]} Qd8 {[%emt 0:00:39]} 71. Bd3 {[%emt 0:00:45]} Kd7 {[%emt 0:00:41]} 72. Qf1 {[%emt 0:00:12]} Kc6 {[%emt 0:00:33]} 73. Qg2 {[%emt 0:00:48]} Kb6 {[%emt 0:00:17]} 74. Be2 {[%emt 0:00:20]} Nc6 {[%emt 0:01:22]} 75. Bd1 {[%emt 0:00:31]} Ka6 {[%emt 0:00:44]} 76. Rd2 {[%emt 0:00:46]} Nd4 {[%emt 0:00:11]} 77. Bf2 {[%emt 0:00:31]} Nf8 {[%emt 0:00:39]} 78. Rdd3 {[%emt 0:00:27]} Nh7 {[%emt 0:00:20]} 79. Be3 {[%emt 0:00:14]} Rb6 {[%emt 0:01:04]} 80. Bd2 {[%emt 0:00:48]} R6b7 {[%emt 0:00:28]} 81. Qf1 {[%emt 0:00:35]} Kb6 {[%emt 0:00:34]} 82. Nc3 {[%emt 0:00:07]} Kc6 {[%emt 0:00:57]} 83. Nd5 {Kxd5} 1/2-1/2